bitfinex-derivatives/quotes_BTCF0:USTF0_20250501
["timestamp","ask_amount","ask_price","bid_price","bid_amount"]
[1746135924083,0.3246758,96736.0,96735.0,0.13]
[1746135924285,0.3933758,96736.0,96735.0,0.13]
[1746135924876,0.3933758,96736.0,96735.0,0.1631]
[1746135925075,0.4013758,96736.0,96735.0,0.1651]
[1746135925287,0.4133758,96736.0,96735.0,0.1671]
[1746135926188,0.4013758,96736.0,96735.0,0.1691]
[1746135926977,0.3933758,96736.0,96735.0,0.1671]
[1746135927277,0.3933758,96736.0,96735.0,0.1701]
[1746135929588,0.7541758,96736.0,96735.0,0.137]
[1746135930275,0.0516727,96729.0,96720.0,0.0357]
[1746135930483,0.5674972,96726.0,96725.0,0.08]
[1746135931182,0.6854972,96726.0,96725.0,0.08]
[1746135931374,0.6854972,96726.0,96725.0,0.081]
[1746135932087,0.70390842,96726.0,96725.0,0.081]
[1746135932288,0.71090842,96726.0,96725.0,0.081]
[1746135933080,0.72190842,96726.0,96725.0,0.081]
[1746135937587,0.2067271,96712.0,96711.0,0.32788481]
[1746135937783,0.2067335,96709.0,96708.0,0.0342]
[1746135937983,0.2067335,96709.0,96708.0,0.1742]
[1746135938184,0.3946335,96709.0,96708.0,0.1742]
[1746135938995,0.4106335,96709.0,96708.0,0.1762]
[1746135939496,0.4226335,96709.0,96708.0,0.1782]
[1746135947799,0.4226335,96709.0,96708.0,0.144]
[1746135952106,0.7834335,96709.0,96708.0,0.144]
[1746135953707,0.7834335,96709.0,96708.0,0.13074942]
[1746135953899,0.7834335,96709.0,96708.0,0.11113285]
[1746135954798,0.7834335,96709.0,96708.0,0.10066285]
[1746135954994,0.0516861,96704.0,96697.0,0.0337]
[1746135955200,0.2067571,96698.0,96697.0,0.1437]
[1746135955812,0.5675571,96698.0,96697.0,0.1437]
[1746135956198,0.7545571,96698.0,96697.0,0.1447]
[1746135957006,0.7705571,96698.0,96697.0,0.1447]
[1746135957804,0.7705571,96698.0,96697.0,0.1437]
[1746135957995,0.7845571,96698.0,96697.0,0.1437]
[1746135958510,0.7845571,96698.0,96697.0,0.11]
[1746135958711,0.7905571,96698.0,96697.0,0.11]
[1746135962011,0.7905571,96698.0,96697.0,0.12523869]
[1746135963511,0.7905571,96698.0,96697.0,0.12521781]
[1746135965500,0.7905571,96698.0,96697.0,0.12523922]
[1746135967411,0.7905571,96698.0,96697.0,0.1252518]
[1746135969016,0.7905571,96698.0,96697.0,0.12533103]
[1746135972709,0.7905571,96698.0,96697.0,0.11]
[1746135973014,0.7905571,96698.0,96697.0,0.12563817]
[1746135973015,0.7915571,96698.0,96697.0,0.12563817]
[1746135974618,0.7715571,96698.0,96697.0,0.12581083]
[1746135974810,0.7915571,96698.0,96697.0,0.12581083]
[1746135976118,0.7915571,96698.0,96697.0,0.11]
[1746135980521,0.7915571,96698.0,96697.0,0.10405]
[1746135981221,0.7915571,96698.0,96697.0,0.08869]
[1746135981822,0.7915571,96698.0,96697.0,0.06794]
[1746135982016,0.2067613,96696.0,96695.0,0.00103417]
[1746135982217,0.3247613,96696.0,96695.0,0.14103417]
[1746135983118,0.3407613,96696.0,96695.0,0.15632368]
[1746135985429,0.3597613,96696.0,96695.0,0.15632368]
[1746135985725,0.3597613,96696.0,96695.0,0.15632989]
[1746135986427,0.3597613,96696.0,96695.0,0.00116774]
[1746135986724,0.3597613,96696.0,96695.0,0.10116774]
[1746135987324,0.2067763,96689.0,96688.0,0.00155133]
[1746135987530,0.2067763,96689.0,96688.0,0.14155133]
[1746135988225,0.4055763,96689.0,96688.0,0.14155133]
[1746135988424,0.4235763,96689.0,96688.0,0.14155133]
[1746135989027,0.4375763,96689.0,96688.0,0.14155133]
[1746135992342,0.7983763,96689.0,96688.0,0.14155133]
[1746135995344,0.206802,96677.0,96676.0,0.0412]
[1746135995538,0.206802,96677.0,96676.0,0.1412]
[1746135996042,0.24108929,96677.0,96676.0,0.1412]
[1746135996241,0.35908929,96677.0,96676.0,0.1412]
[1746135996543,0.43968929,96677.0,96676.0,0.1412]
[1746135998040,0.45168929,96677.0,96676.0,0.1412]
[1746135999544,0.46668929,96677.0,96676.0,0.1412]
[1746136006245,0.46668929,96677.0,96676.0,0.1]
[1746136007742,0.2068105,96673.0,96672.0,0.00155163]
[1746136007944,0.2068105,96673.0,96672.0,0.16155163]
[1746136008249,0.3248105,96673.0,96672.0,0.16155163]
[1746136008754,0.4043105,96673.0,96672.0,0.16155163]
[1746136008942,0.4173105,96673.0,96672.0,0.16155163]
[1746136009451,0.4043105,96673.0,96672.0,0.16155163]
[1746136009648,0.4183105,96673.0,96672.0,0.16155163]
[1746136011241,0.4293105,96673.0,96672.0,0.16155163]
[1746136011845,0.4303105,96673.0,96672.0,0.16155163]
[1746136017457,0.2068255,96666.0,96665.0,0.3618345]
[1746136017759,0.2068255,96666.0,96665.0,0.4618345]
[1746136018160,0.3248255,96666.0,96665.0,0.4618345]
[1746136018361,0.4018255,96666.0,96665.0,0.4618345]
[1746136018948,0.4118255,96666.0,96665.0,0.4618345]
[1746136019251,0.4248255,96666.0,96665.0,0.4618345]
[1746136020460,0.0517069,96665.0,96654.0,0.00782706]
[1746136020763,0.2068854,96638.0,96637.0,0.00155219]
[1746136020959,0.2068854,96638.0,96637.0,0.14155219]
[1746136021166,0.3248854,96638.0,96637.0,0.24503218]
[1746136021365,0.3248854,96638.0,96637.0,0.25269173]
[1746136022158,0.3348854,96638.0,96637.0,0.14921174]
[1746136022659,0.3746854,96638.0,96637.0,0.14921174]
[1746136023060,0.7354854,96638.0,96637.0,0.14921174]
[1746136023262,0.6174854,96638.0,96637.0,0.14921174]
[1746136023769,0.6334854,96638.0,96637.0,0.14921174]
[1746136024068,0.6234854,96638.0,96637.0,0.14921174]
[1746136024267,0.6364854,96638.0,96637.0,0.14921174]
[1746136025869,0.66529988,96638.0,96637.0,0.14921174]
[1746136027163,0.0517235,96634.0,96628.0,0.00791807]
[1746136027475,0.5677047,96629.0,96628.0,0.05208193]
[1746136028170,0.6857047,96629.0,96628.0,0.05208193]
[1746136028386,0.7670047,96629.0,96628.0,0.05208193]
[1746136030569,0.0517273,96627.0,96623.0,0.00155221]
[1746136030763,0.3608,96624.0,96623.0,0.15155221]
[1746136031074,0.5677154,96624.0,96623.0,0.15155221]
[1746136031568,0.56782809,96624.0,96623.0,0.15155221]
[1746136032058,0.57982809,96624.0,96623.0,0.15155221]
[1746136032262,0.69782809,96624.0,96623.0,0.15155221]
[1746136032872,0.69782809,96624.0,96623.0,1e-08]
[1746136033064,0.57982809,96624.0,96623.0,1e-08]
[1746136034367,0.69782809,96624.0,96623.0,1e-08]
[1746136034568,0.6977154,96624.0,96623.0,1e-08]
[1746136035469,0.7127154,96624.0,96623.0,1e-08]
[1746136036867,0.7147154,96624.0,96623.0,1e-08]
[1746136037267,0.7157154,96624.0,96623.0,1e-08]
[1746136040078,0.71583594,96624.0,96623.0,1e-08]
[1746136040279,0.7157154,96624.0,96623.0,1e-08]
[1746136040875,0.71584632,96624.0,96623.0,1e-08]
[1746136041076,0.71578872,96624.0,96623.0,1e-08]
[1746136041277,0.71584367,96624.0,96623.0,1e-08]
[1746136041472,0.71779085,96624.0,96623.0,1e-08]
[1746136041677,0.7177154,96624.0,96623.0,1e-08]
[1746136041875,0.7187154,96624.0,96623.0,1e-08]
[1746136042074,0.8222114,96624.0,96623.0,1e-08]
[1746136042483,1.0722114,96624.0,96623.0,1e-08]
[1746136043684,0.206954,96606.0,96605.0,0.00103514]
[1746136043984,0.92867004,96606.0,96605.0,0.15000001]
[1746136044178,1.04667004,96606.0,96605.0,0.15000001]
[1746136044485,1.046554,96606.0,96605.0,0.15000001]
[1746136044675,0.2069604,96603.0,96602.0,0.00155275]
[1746136044872,0.2069647,96601.0,96585.0,0.01665178]
[1746136045184,0.2069904,96589.0,96588.0,0.0395]
[1746136045377,0.56791746,96589.0,96588.0,0.0895]
[1746136045577,0.56791746,96589.0,96588.0,0.06522926]
[1746136045578,0.92871746,96589.0,96588.0,0.06522926]
[1746136045785,0.9285904,96589.0,96588.0,0.06522926]
[1746136046081,1.0082904,96589.0,96588.0,0.06522926]
[1746136046772,1.0082904,96589.0,96588.0,0.06553271]
[1746136047284,1.1402904,96589.0,96588.0,0.06553271]
[1746136047988,0.2069947,96587.0,96586.0,0.00155247]
[1746136048284,0.3249947,96587.0,96586.0,0.14155247]
[1746136048578,0.3251019,96587.0,96586.0,0.14155247]
[1746136048779,0.3249947,96587.0,96586.0,0.14155247]
[1746136048984,0.35359031,96587.0,96586.0,0.14155247]
[1746136050085,0.38459031,96587.0,96586.0,0.14155247]
[1746136051883,0.38469961,96587.0,96586.0,0.14155247]
[1746136052185,0.38459031,96587.0,96586.0,0.14155247]
[1746136056777,0.38469367,96587.0,96586.0,0.14155247]
[1746136056980,0.38471775,96587.0,96586.0,0.14155247]
[1746136057181,0.38459031,96587.0,96586.0,0.14155247]
[1746136057982,0.38467811,96587.0,96586.0,0.14155247]
[1746136058184,0.38468193,96587.0,96586.0,0.14155247]
[1746136058489,0.38459031,96587.0,96586.0,0.14155247]
[1746136058991,0.38472404,96587.0,96586.0,0.14155247]
[1746136059182,0.38459031,96587.0,96586.0,0.14155247]
[1746136062094,0.38668433,96587.0,96586.0,0.14155247]
[1746136062393,0.26859031,96587.0,96586.0,0.14155247]
[1746136062687,0.26959031,96587.0,96586.0,0.14155247]
[1746136064087,0.38759031,96587.0,96586.0,0.14155247]
[1746136064888,0.207014,96578.0,96577.0,0.0403]
[1746136065093,0.5679384,96578.0,96577.0,0.0903]
[1746136066195,0.5819384,96578.0,96577.0,0.0903]
[1746136066690,0.5979384,96578.0,96577.0,0.0903]
[1746136068287,0.5979384,96578.0,96577.0,0.05]
[1746136069397,0.5979384,96578.0,96577.0,0.0581]
[1746136070295,0.2070483,96562.0,96561.0,0.19204968]
[1746136070495,0.2070483,96562.0,96561.0,0.34204968]
[1746136070696,0.2070483,96562.0,96561.0,0.51118925]
[1746136071094,0.2070483,96562.0,96561.0,0.62918925]
[1746136071503,0.2200483,96562.0,96561.0,0.62918925]
[1746136072101,0.2070483,96562.0,96561.0,0.62918925]
[1746136072302,0.2210483,96562.0,96561.0,0.37918925]
[1746136072892,0.2310483,96562.0,96561.0,0.37918925]
[1746136073295,0.2310483,96562.0,96561.0,0.58623965]
[1746136073492,0.2340483,96562.0,96561.0,0.58623965]
[1746136074002,0.2350483,96562.0,96561.0,0.59933965]
[1746136074804,0.22211048,96562.0,96561.0,0.59933965]
[1746136077108,0.22211048,96562.0,96561.0,0.48133965]
[1746136078206,0.22211048,96562.0,96561.0,0.59933965]
[1746136079907,0.22211048,96562.0,96561.0,0.49577965]
[1746136080108,0.22211048,96562.0,96561.0,0.48133965]
[1746136081203,0.2588965,96578.0,96575.0,0.0517546]
[1746136081405,0.2071426,96578.0,96577.0,0.2070161]
[1746136081701,0.0001244,96578.0,96577.0,0.3570161]
[1746136081900,0.0001244,96578.0,96577.0,0.4737601]
[1746136082308,0.0191244,96578.0,96577.0,0.5917601]
[1746136082509,0.0351244,96578.0,96577.0,0.5917601]
[1746136083103,0.2421384,96578.0,96577.0,0.4737601]
[1746136083607,0.0351244,96578.0,96577.0,0.4737601]
[1746136084201,0.0351244,96578.0,96577.0,0.5917601]
[1746136084609,0.0241244,96578.0,96577.0,0.5917601]
[1746136085409,0.0181244,96578.0,96577.0,0.80224477]
[1746136085611,0.0041244,96578.0,96577.0,0.80224477]
[1746136087007,0.0041244,96578.0,96577.0,1.11600077]
[1746136087309,0.0414,96594.0,96593.0,0.2069818]
[1746136087502,0.02533373,96596.0,96595.0,0.2069775]
[1746136087709,0.0414,96600.0,96599.0,0.2069689]
[1746136087911,0.2483668,96600.0,96599.0,0.3469689]
[1746136088210,0.2483668,96600.0,96599.0,0.56848889]
[1746136088818,0.0414,96600.0,96599.0,0.56848889]
[1746136090413,0.0534,96600.0,96599.0,0.56948889]
[1746136091514,0.2703668,96600.0,96599.0,0.57048889]
[1746136092217,0.2703668,96600.0,96599.0,0.45248889]
[1746136094012,0.0634,96600.0,96599.0,0.45248889]
[1746136095011,0.104,96600.0,96599.0,0.45248889]
[1746136095212,0.104,96600.0,96599.0,0.57048889]
[1746136096218,0.104,96600.0,96599.0,0.45248889]
[1746136098221,0.1432,96600.0,96599.0,0.45248889]
[1746136099115,0.3501668,96600.0,96599.0,0.45248889]
[1746136100018,0.1432,96600.0,96599.0,0.45248889]
[1746136100220,0.3501668,96600.0,96599.0,0.45248889]
[1746136100421,0.1432,96600.0,96599.0,0.45248889]
[1746136100815,0.3501668,96600.0,96599.0,0.45248889]
[1746136108426,0.1432,96600.0,96599.0,0.45248889]
[1746136109224,0.3501668,96600.0,96599.0,0.3489689]
[1746136111425,0.1432,96600.0,96599.0,0.3489689]
[1746136111618,0.3501668,96600.0,96599.0,0.3489689]
[1746136122124,0.3501668,96600.0,96599.0,0.4121289]
[1746136123141,0.1432,96600.0,96599.0,0.4121289]
[1746136124639,0.1432,96600.0,96599.0,0.67519458]
[1746136128941,0.1432,96600.0,96599.0,0.4121289]
[1746136130650,0.13026773,96600.0,96599.0,0.4121289]
[1746136134739,0.13026773,96600.0,96599.0,0.3489689]
[1746136140960,0.11733541,96600.0,96599.0,0.3489689]
[1746136141163,0.23533541,96600.0,96599.0,0.3489689]
[1746136147565,0.23533541,96600.0,96599.0,0.3489689]
[1746136148064,0.11733541,96600.0,96599.0,0.3489689]
[1746136149159,0.23533541,96600.0,96599.0,0.3489689]
[1746136150268,0.11733541,96600.0,96599.0,0.3489689]
[1746136151065,0.23533541,96600.0,96599.0,0.3489689]
[1746136151465,0.22240309,96600.0,96599.0,0.3489689]
[1746136152059,0.10440309,96600.0,96599.0,0.3489689]
[1746136152366,0.10440309,96600.0,96599.0,0.66479243]
[1746136153164,0.22240309,96600.0,96599.0,0.66479243]
[1746136156258,0.22240309,96600.0,96599.0,0.3489689]
[1746136161561,0.22240309,96600.0,96599.0,0.3867689]
[1746136163270,0.22240309,96600.0,96599.0,0.3489689]
[1746136170166,0.10440309,96600.0,96599.0,0.3489689]
[1746136174177,0.22240309,96600.0,96599.0,0.3489689]
[1746136177081,0.10440309,96600.0,96599.0,0.3489689]
[1746136182777,0.10440309,96600.0,96599.0,0.3867689]
[1746136183177,0.10440309,96600.0,96599.0,0.3489689]
[1746136188293,0.22240309,96600.0,96599.0,0.3489689]
[1746136189192,0.10440309,96600.0,96599.0,0.3489689]
[1746136191188,0.22240309,96600.0,96599.0,0.3489689]
[1746136192395,0.22240309,96600.0,96599.0,0.7097689]
[1746136193186,0.10440309,96600.0,96599.0,0.7097689]
[1746136194498,0.10440309,96600.0,96599.0,0.5028]
[1746136194997,0.10440309,96600.0,96599.0,0.7097689]
[1746136203706,0.10440309,96600.0,96599.0,1.02559243]
[1746136207011,0.10440309,96600.0,96599.0,0.7097689]
[1746136215122,0.10440309,96600.0,96599.0,0.3489689]
[1746136223631,0.10440309,96600.0,96599.0,0.16690048]
[1746136223824,0.10440309,96600.0,96599.0,0.19690048]
[1746136225829,0.06380309,96600.0,96599.0,0.19690048]
[1746136226019,0.06380309,96600.0,96599.0,0.55770048]
[1746136230130,0.18180309,96600.0,96599.0,0.55770048]
[1746136233541,0.16887081,96600.0,96599.0,0.55770048]
[1746136236148,0.05087081,96600.0,96599.0,0.55770048]
[1746136237143,0.16887081,96600.0,96599.0,0.55770048]
[1746136241145,0.05087081,96600.0,96599.0,0.55770048]
[1746136245152,0.16887081,96600.0,96599.0,0.55770048]
[1746136247047,0.05087081,96600.0,96599.0,0.55770048]
[1746136248951,0.0379387,96600.0,96599.0,0.55770048]
[1746136252160,0.1559387,96600.0,96599.0,0.55770048]
[1746136253257,0.0379387,96600.0,96599.0,0.55770048]
[1746136256059,0.1559387,96600.0,96599.0,0.55770048]
[1746136258257,0.0379387,96600.0,96599.0,0.55770048]
[1746136259167,0.1559387,96600.0,96599.0,0.55770048]
[1746136259366,0.1629387,96600.0,96599.0,0.55770048]
[1746136260056,0.0449387,96600.0,96599.0,0.55770048]
[1746136260766,0.0529387,96600.0,96599.0,0.55770048]
[1746136261169,0.1709387,96600.0,96599.0,0.55770048]
[1746136261467,0.1629387,96600.0,96599.0,0.55770048]
[1746136261665,0.1669387,96600.0,96599.0,0.55770048]
[1746136262169,0.0489387,96600.0,96599.0,0.55770048]
[1746136263771,0.0419387,96600.0,96599.0,0.55770048]
[1746136263974,0.0429387,96600.0,96599.0,0.55770048]
[1746136275678,0.0429387,96600.0,96599.0,0.19690048]
[1746136276279,0.1609387,96600.0,96599.0,0.19690048]
[1746136277182,0.0429387,96600.0,96599.0,0.19690048]
[1746136279181,0.1609387,96600.0,96599.0,0.19690048]
[1746136280980,0.1609387,96600.0,96599.0,0.24280048]
[1746136281474,0.1609387,96600.0,96599.0,0.60360048]
[1746136283082,0.1609387,96600.0,96599.0,0.55770048]
[1746136286178,0.2054387,96600.0,96599.0,0.55770048]
[1746136287484,0.2054387,96600.0,96599.0,0.19690048]
[1746136290390,0.4124055,96600.0,96599.0,0.19690048]
[1746136290588,0.2054387,96600.0,96599.0,0.19690048]
[1746136294392,0.4124055,96600.0,96599.0,0.19690048]
[1746136307590,0.2054387,96600.0,96599.0,0.19690048]
[1746136307789,0.4124055,96600.0,96599.0,0.19690048]
[1746136309895,0.4124055,96600.0,96599.0,0.00943979]
[1746136310094,0.4124055,96600.0,96599.0,0.21640869]
[1746136327708,0.2054387,96600.0,96599.0,0.21640869]
[1746136327908,0.4124055,96600.0,96599.0,0.21640869]
[1746136331911,0.4124055,96600.0,96599.0,0.48000402]
[1746136342113,0.4124055,96600.0,96599.0,0.21640869]
[1746136350121,0.2944055,96600.0,96599.0,0.21640869]
[1746136351120,0.4124055,96600.0,96599.0,0.21640869]
[1746136352520,0.4124055,96600.0,96599.0,0.4799552]
[1746136355123,0.2944055,96600.0,96599.0,0.4799552]
[1746136356121,0.4124055,96600.0,96599.0,0.4799552]
[1746136356621,0.4124055,96600.0,96599.0,0.21640869]
[1746136359323,0.2944055,96600.0,96599.0,0.21640869]
[1746136360122,0.4124055,96600.0,96599.0,0.21640869]
[1746136374526,0.2054387,96600.0,96599.0,0.21640869]
[1746136378128,0.0874387,96600.0,96599.0,0.21640869]
[1746136380132,0.2054387,96600.0,96599.0,0.21640869]
[1746136383135,0.0874387,96600.0,96599.0,0.21640869]
[1746136385824,0.2944055,96600.0,96599.0,0.21640869]
[1746136390134,0.4124055,96600.0,96599.0,0.21640869]
[1746136391039,0.2054387,96600.0,96599.0,0.21640869]
[1746136396646,0.4124055,96600.0,96599.0,0.21640869]
[1746136401266,0.2944055,96600.0,96599.0,0.21640869]
[1746136402067,0.4124055,96600.0,96599.0,0.21640869]
[1746136403164,0.2944055,96600.0,96599.0,0.21640869]
[1746136406069,0.4124055,96600.0,96599.0,0.21640869]
[1746136408071,0.4124055,96600.0,96599.0,0.14]
[1746136408670,0.4124055,96600.0,96599.0,0.3469689]
[1746136413671,0.2054387,96600.0,96599.0,0.3469689]
[1746136414371,0.4124055,96600.0,96599.0,0.3469689]
[1746136422977,0.4074055,96600.0,96599.0,0.3469689]
[1746136423181,0.4124055,96600.0,96599.0,0.3469689]
[1746136432079,0.4124055,96600.0,96599.0,0.36273033]
[1746136433078,0.3999894,96600.0,96599.0,0.36273033]
[1746136433277,0.1930226,96600.0,96599.0,0.36273033]
[1746136433976,0.1930226,96600.0,96599.0,0.36282795]
[1746136441091,0.3999894,96600.0,96599.0,0.36282795]
[1746136443094,0.3999894,96600.0,96599.0,0.3469689]
[1746136444291,0.1930226,96600.0,96599.0,0.3469689]
[1746136448997,0.3999894,96600.0,96599.0,0.3469689]
[1746136453003,0.1930226,96600.0,96599.0,0.3469689]
[1746136453304,0.3999894,96600.0,96599.0,0.14]
[1746136454602,0.3999894,96600.0,96599.0,0.3469689]
[1746136459814,0.3999894,96600.0,96599.0,0.14]
[1746136461211,0.5035094,96600.0,96599.0,0.14]
[1746136468022,0.3999894,96600.0,96599.0,0.14]
[1746136474830,0.2069947,96587.0,96586.0,0.16950334]
[1746136475023,0.5677947,96587.0,96586.0,0.22950334]
[1746136475329,0.6857947,96587.0,96586.0,0.22950334]
[1746136475724,0.7281947,96587.0,96586.0,0.22950334]
[1746136476425,0.7281947,96587.0,96586.0,0.23050334]
[1746136477031,0.7281947,96587.0,96586.0,0.23150334]
[1746136477224,0.7331947,96587.0,96586.0,0.23150334]
[1746136477426,0.7331947,96587.0,96586.0,0.07737359]
[1746136478433,0.7381947,96587.0,96586.0,0.07737359]
[1746136481833,0.7381947,96587.0,96586.0,0.07751]
[1746136485535,0.7381947,96587.0,96586.0,0.07752625]
[1746136486036,0.7823947,96587.0,96586.0,0.07752625]
[1746136486336,0.7823947,96587.0,96586.0,0.07752615]
[1746136487328,0.7823947,96587.0,96586.0,0.07749707]
[1746136488432,0.2070097,96580.0,96579.0,0.00155296]
[1746136488640,0.2070097,96580.0,96579.0,0.14155296]
[1746136489232,0.2950097,96580.0,96579.0,0.14155296]
[1746136489632,0.2990097,96580.0,96579.0,0.14155296]
[1746136489832,0.3020097,96580.0,96579.0,0.14155296]
[1746136491133,0.4200097,96580.0,96579.0,0.14155296]
[1746136492343,0.3020097,96580.0,96579.0,0.14155296]
[1746136500150,0.4200097,96580.0,96579.0,0.14155296]
[1746136500449,0.4200097,96580.0,96579.0,0.15689637]
[1746136501143,0.3020097,96580.0,96579.0,0.15689637]
[1746136503152,0.4200097,96580.0,96579.0,0.15689637]
[1746136505151,0.3020097,96580.0,96579.0,0.15689637]
[1746136506251,0.4200097,96580.0,96579.0,0.15689637]
[1746136507138,0.3020097,96580.0,96579.0,0.15689637]
[1746136507539,0.3020097,96580.0,96579.0,0.15691043]
[1746136508147,0.4200097,96580.0,96579.0,0.15691043]
[1746136508748,0.3763097,96580.0,96579.0,0.15691043]
[1746136508954,0.3320097,96580.0,96579.0,0.15691043]
[1746136509144,0.2140097,96580.0,96579.0,0.27491043]
[1746136509345,0.2140097,96580.0,96579.0,0.48192223]
[1746136509751,0.2140097,96580.0,96579.0,0.51242223]
[1746136510353,0.2100097,96580.0,96579.0,0.51242223]
[1746136510546,0.2130097,96580.0,96579.0,0.51242223]
[1746136511255,0.2130097,96580.0,96579.0,0.5126991]
[1746136511748,0.2120097,96580.0,96579.0,0.5126991]
[1746136512657,0.18665471,96580.0,96579.0,0.5126991]
[1746136513154,0.18665471,96580.0,96579.0,0.51295922]
[1746136513355,0.18365471,96580.0,96579.0,0.51295922]
[1746136513546,0.18565471,96580.0,96579.0,0.51295922]
[1746136514051,0.0517434,96598.0,96579.0,1.02028742]
[1746136514256,0.2587145,96598.0,96597.0,0.3608]
[1746136514446,0.2587145,96598.0,96597.0,0.51669446]
[1746136515254,0.2597145,96598.0,96597.0,0.59109446]
[1746136515650,0.2597145,96598.0,96597.0,0.7821732]
[1746136516657,0.2587145,96598.0,96597.0,0.7821732]
[1746136516956,0.2109711,96598.0,96597.0,0.7821732]
[1746136517350,0.2489675,96600.0,96599.0,0.2069689]
[1746136517550,0.2489675,96600.0,96599.0,0.3469689]
[1746136519053,0.2519675,96600.0,96599.0,0.3469689]
[1746136519768,0.2509675,96600.0,96599.0,0.3469689]
[1746136519959,0.2539675,96600.0,96599.0,0.3469689]
[1746136520257,0.2519675,96600.0,96599.0,0.3469689]
[1746136520457,0.2539675,96600.0,96599.0,0.3469689]
[1746136527558,0.2539675,96600.0,96599.0,0.7077689]
[1746136529674,0.2529675,96600.0,96599.0,0.7077689]
[1746136529868,0.2509675,96600.0,96599.0,0.7077689]
[1746136530062,0.2529675,96600.0,96599.0,0.7077689]
[1746136531170,0.2539675,96600.0,96599.0,0.7077689]
[1746136532671,0.2509675,96600.0,96599.0,0.7077689]
[1746136532877,0.2539675,96600.0,96599.0,0.7077689]
[1746136533376,0.2519675,96600.0,96599.0,0.7077689]
[1746136533576,0.2539675,96600.0,96599.0,0.7077689]
[1746136534177,0.2509675,96600.0,96599.0,0.7077689]
[1746136534378,0.2539675,96600.0,96599.0,0.7077689]
[1746136534992,0.2509675,96600.0,96599.0,0.7077689]
[1746136535182,0.2539675,96600.0,96599.0,0.7077689]
[1746136535779,0.2509675,96600.0,96599.0,0.7077689]
[1746136535983,0.2529675,96600.0,96599.0,0.7077689]
[1746136537291,0.2509675,96600.0,96599.0,0.7077689]
[1746136537487,0.2529675,96600.0,96599.0,0.7077689]
[1746136540893,0.2509675,96600.0,96599.0,0.7077689]
[1746136541195,0.2529675,96600.0,96599.0,0.7077689]
[1746136541385,0.2509675,96600.0,96599.0,0.7077689]
[1746136541584,0.2539675,96600.0,96599.0,0.7077689]
[1746136542994,0.2509675,96600.0,96599.0,0.7077689]
[1746136543185,0.2529675,96600.0,96599.0,0.5008]
[1746136543385,0.2529675,96600.0,96599.0,0.7077689]
[1746136544191,0.046,96600.0,96599.0,0.7077689]
[1746136544693,0.047,96600.0,96599.0,0.7077689]
[1746136544993,0.2959668,96600.0,96599.0,0.7077689]
[1746136545691,0.2949668,96600.0,96599.0,0.7077689]
[1746136546297,0.2929668,96600.0,96599.0,0.7077689]
[1746136546496,0.2949668,96600.0,96599.0,0.7077689]
[1746136548399,0.2959668,96600.0,96599.0,0.7077689]
[1746136548594,0.2939668,96600.0,96599.0,0.7077689]
[1746136548795,0.2959668,96600.0,96599.0,0.7077689]
[1746136551395,0.2929668,96600.0,96599.0,0.7077689]
[1746136551598,0.2949668,96600.0,96599.0,0.7077689]
[1746136551806,0.2929668,96600.0,96599.0,0.7077689]
[1746136552099,0.2949668,96600.0,96599.0,0.7077689]
[1746136552703,0.2959668,96600.0,96599.0,0.7077689]
[1746136553387,0.2939668,96600.0,96599.0,0.7077689]
[1746136553591,0.2959668,96600.0,96599.0,0.7077689]
[1746136558107,0.089,96600.0,96599.0,0.7077689]
[1746136558707,0.2959668,96600.0,96599.0,0.7077689]
[1746136560308,0.2949668,96600.0,96599.0,0.7077689]
[1746136560909,0.088,96600.0,96599.0,0.7077689]
[1746136561514,0.088,96600.0,96599.0,0.7516689]
[1746136562205,0.087,96600.0,96599.0,0.7516689]
[1746136562710,0.088,96600.0,96599.0,0.7516689]
[1746136564001,0.086,96600.0,96599.0,0.7516689]
[1746136564305,0.088,96600.0,96599.0,0.7516689]
[1746136564801,0.086,96600.0,96599.0,0.7516689]
[1746136565010,0.087,96600.0,96599.0,0.7516689]
[1746136571111,0.086,96600.0,96599.0,0.7516689]
[1746136571412,0.088,96600.0,96599.0,0.7516689]
[1746136572014,0.086,96600.0,96599.0,0.7516689]
[1746136572216,0.088,96600.0,96599.0,0.7516689]
[1746136572406,0.088,96600.0,96599.0,1.01526727]
[1746136573805,0.088,96600.0,96599.0,0.97136727]
[1746136576718,0.088,96600.0,96599.0,0.7077689]
[1746136578321,0.206,96600.0,96599.0,0.7077689]
[1746136581516,0.4129668,96600.0,96599.0,0.7077689]
[1746136582825,0.206,96600.0,96599.0,0.7077689]
[1746136592727,0.206,96600.0,96599.0,0.97137818]
[1746136596123,0.206,96600.0,96599.0,0.7077689]
[1746136597231,0.204,96600.0,96599.0,0.7077689]
[1746136597421,0.206,96600.0,96599.0,0.7077689]
[1746136597930,0.204,96600.0,96599.0,0.7077689]
[1746136598131,0.205,96600.0,96599.0,0.7077689]
[1746136603928,0.203,96600.0,96599.0,0.7077689]
[1746136604335,0.204,96600.0,96599.0,0.7077689]
[1746136604834,0.205,96600.0,96599.0,0.7077689]
[1746136606239,0.203,96600.0,96599.0,0.7077689]
[1746136606430,0.204,96600.0,96599.0,0.7077689]
[1746136607130,0.205,96600.0,96599.0,0.7077689]
[1746136608538,0.204,96600.0,96599.0,0.7077689]
[1746136608733,0.205,96600.0,96599.0,0.7077689]
[1746136609131,0.204,96600.0,96599.0,0.7077689]
[1746136609936,0.203,96600.0,96599.0,0.7077689]
[1746136610140,0.204,96600.0,96599.0,0.7077689]
[1746136610337,0.205,96600.0,96599.0,0.7077689]
[1746136610734,0.204,96600.0,96599.0,0.7077689]
[1746136611644,0.162,96600.0,96599.0,0.7077689]
[1746136611840,0.0015,96620.0,96619.0,0.2069261]
[1746136612039,0.0015,96620.0,96619.0,0.3569261]
[1746136612449,0.0015,96620.0,96619.0,0.4007261]
[1746136612947,0.0015,96620.0,96619.0,0.40829441]
[1746136613147,0.1195,96620.0,96619.0,0.4238346]
[1746136613442,0.07888515,96635.0,96634.0,0.206894]
[1746136613650,0.07888515,96635.0,96634.0,0.74323419]
[1746136613849,0.09170872,96635.0,96634.0,0.74323419]
[1746136614154,0.10528577,96644.0,96639.0,0.0517203]
[1746136614345,0.10528577,96644.0,96643.0,0.5676747]
[1746136614545,0.10528577,96644.0,96643.0,0.73321489]
[1746136614942,0.11835773,96644.0,96643.0,0.73321489]
[1746136615151,0.23635773,96644.0,96643.0,0.73321489]
[1746136615352,0.23835773,96644.0,96643.0,0.73321489]
[1746136616748,0.13307196,96644.0,96643.0,0.73321489]
[1746136617249,0.13107196,96644.0,96643.0,0.73321489]
[1746136617446,0.0517058,96667.0,96654.0,0.2068512]
[1746136617646,0.3608,96674.0,96665.0,0.2068276]
[1746136617844,0.3608,96674.0,96665.0,0.36236779]
[1746136618044,0.119,96666.0,96665.0,0.3468276]
[1746136618745,0.3258255,96666.0,96665.0,0.3468276]
[1746136618947,0.33865937,96666.0,96665.0,0.3468276]
[1746136619154,0.33865937,96666.0,96665.0,0.3568276]